[Event "*** Titled Tuesday Blitz"]
[Site "Chess.com"]
[Date "2020.11.03"]
[Round "4"]
[White "boasovietica"]
[Black "RobertoJBM"]
[Result "1/2-1/2"]
[WhiteElo "2539"]
[BlackElo "2794"]
[TimeControl "180+1"]
[EndTime "10:43:12 PST"]
[Termination "Game drawn by agreement"]

1. e4 {[%clk 0:03:00.9]} 1... c6 {[%clk 0:02:59.2]} 2. d4 {[%clk 0:03:00.2]}
2... d5 {[%clk 0:03:00.1]} 3. exd5 {[%clk 0:03:01.1]} 3... cxd5 {[%clk
0:02:59.8]} 4. Bd3 {[%clk 0:03:01.7]} 4... Nc6 {[%clk 0:02:59.5]} 5. c3 {[%clk
0:03:02.1]} 5... g6 {[%clk 0:02:59.3]} 6. Ne2 {[%clk 0:03:01.8]} 6... Bf5 {[%clk
0:02:58]} 7. Bxf5 {[%clk 0:02:57.5]} 7... gxf5 {[%clk 0:02:58.9]} 8. Nd2 {[%clk
0:02:57.6]} 8... e6 {[%clk 0:02:52.6]} 9. Nf3 {[%clk 0:02:58]} 9... Nf6 {[%clk
0:02:52]} 10. Bg5 {[%clk 0:02:49.5]} 10... Be7 {[%clk 0:02:51.4]} 11. Qc1 {[%clk
0:02:48]} 11... Ne4 {[%clk 0:02:47.3]} 12. h4 {[%clk 0:02:30.7]} 12... Rg8
{[%clk 0:02:42.2]} 13. g3 {[%clk 0:01:58.5]} 13... Qd7 {[%clk 0:02:19.7]} 14.
Qe3 {[%clk 0:01:45.3]} 14... O-O-O {[%clk 0:02:17.2]} 15. Bxe7 {[%clk
0:01:30.8]} 15... Qxe7 {[%clk 0:02:16.3]} 16. Nf4 {[%clk 0:01:30.2]} 16... Kb8
{[%clk 0:02:04.8]} 17. Nd3 {[%clk 0:01:29.1]} 17... f6 {[%clk 0:02:03]} 18.
O-O-O {[%clk 0:01:25.4]} 18... Qd6 {[%clk 0:01:59.7]} 19. Rhf1 {[%clk
0:01:04.7]} 19... Na5 {[%clk 0:01:48.8]} 20. Qf4 {[%clk 0:01:03.8]} 20... Nc4
{[%clk 0:01:46.8]} 21. Qxd6+ {[%clk 0:01:02.8]} 21... Ncxd6 {[%clk 0:01:43.5]}
22. Nf4 {[%clk 0:00:56.2]} 22... Rde8 {[%clk 0:01:43.7]} 23. Nd2 {[%clk
0:00:51.3]} 23... Kc7 {[%clk 0:01:41.1]} 24. Nxe4 {[%clk 0:00:49.8]} 24... fxe4
{[%clk 0:01:38.2]} 25. b3 {[%clk 0:00:42.5]} 25... b5 {[%clk 0:01:33.2]} 26.
Rfe1 {[%clk 0:00:42.2]} 26... f5 {[%clk 0:01:32.8]} 27. Kb2 {[%clk 0:00:40.8]}
27... Kd7 {[%clk 0:01:29.9]} 28. Nh5 {[%clk 0:00:38.4]} 28... Ke7 {[%clk
0:01:29.4]} 29. Nf4 {[%clk 0:00:37.9]} 29... Kf7 {[%clk 0:01:28.8]} 30. Rg1
{[%clk 0:00:35.7]} 30... Rc8 {[%clk 0:01:26]} 31. Rc1 {[%clk 0:00:35.3]} 31...
Rc7 {[%clk 0:01:25.9]} 32. Kc2 {[%clk 0:00:31.5]} 32... Rgc8 {[%clk 0:01:24.4]}
33. Kd2 {[%clk 0:00:31.8]} 33... a5 {[%clk 0:01:21.9]} 34. Rc2 {[%clk
0:00:27.3]} 34... b4 {[%clk 0:01:15.5]} 35. Rgc1 {[%clk 0:00:26.6]} 35... bxc3+
{[%clk 0:01:15.2]} 36. Rxc3 {[%clk 0:00:26.4]} 36... Rxc3 {[%clk 0:01:15.8]} 37.
Rxc3 {[%clk 0:00:26.5]} 37... Rxc3 {[%clk 0:01:16.4]} 38. Kxc3 {[%clk
0:00:27.4]} 38... Nb5+ {[%clk 0:01:16.4]} 39. Kb2 {[%clk 0:00:24.2]} 39... Nxd4
{[%clk 0:01:17.3]} 40. Ka3 {[%clk 0:00:24.7]} 40... Ke7 {[%clk 0:01:14.8]} 41.
Ka4 {[%clk 0:00:25]} 41... Nc6 {[%clk 0:01:14.9]} 42. Kb5 {[%clk 0:00:24.6]}
42... Kd6 {[%clk 0:01:14.8]} 43. h5 {[%clk 0:00:16.5]} 43... d4 {[%clk
0:01:12.3]} 44. Kc4 {[%clk 0:00:09.7]} 44... d3 {[%clk 0:01:11.7]} 45. Kc3
{[%clk 0:00:07.9]} 45... e5 {[%clk 0:01:08.5]} 46. Ng6 {[%clk 0:00:07.3]} 46...
Nb4 {[%clk 0:00:42.7]} 47. h6 {[%clk 0:00:07.3]} 47... Nd5+ {[%clk 0:00:34.6]}
48. Kd2 {[%clk 0:00:06.9]} 48... Nf6 {[%clk 0:00:35.5]} 49. Nh4 {[%clk
0:00:02.5]} 49... Ke6 {[%clk 0:00:34.1]} 50. a3 {[%clk 0:00:02.8]} 50... Nd5
{[%clk 0:00:29]} 51. Ng2 {[%clk 0:00:01.1]} 51... f4 {[%clk 0:00:28.5]} 52. gxf4
{[%clk 0:00:01.1]} 52... exf4 {[%clk 0:00:29.4]} 53. Nh4 {[%clk 0:00:01.6]}
53... Kf6 {[%clk 0:00:29.1]} 54. f3 {[%clk 0:00:02]} 54... e3+ {[%clk
0:00:10.7]} 55. Kxd3 {[%clk 0:00:02.5]} 55... Kg5 {[%clk 0:00:10.8]} 56. Ng2
{[%clk 0:00:02.9]} 56... Kxh6 {[%clk 0:00:10.6]} 57. Ke4 {[%clk 0:00:03.4]}
57... Nc3+ {[%clk 0:00:09.7]} 58. Kxf4 {[%clk 0:00:03.8]} 58... e2 {[%clk
0:00:10.3]} 59. b4 {[%clk 0:00:04.1]} 59... axb4 {[%clk 0:00:10.5]} 60. axb4
{[%clk 0:00:04.6]} 60... Kg6 {[%clk 0:00:11.4]} 61. Ke3 {[%clk 0:00:05.2]} 61...
Kf5 {[%clk 0:00:11.6]} 62. b5 {[%clk 0:00:05.6]} 62... Nxb5 {[%clk 0:00:11.3]}
63. Kxe2 {[%clk 0:00:06.1]} 63... Nd4+ {[%clk 0:00:11.3]} 64. Kf2 {[%clk
0:00:06.6]} 64... Nxf3 {[%clk 0:00:07.9]} 65. Kxf3 {[%clk 0:00:06.7]} 1/2-1/2

[Event "*** Titled Tuesday Blitz"]
[Site "Chess.com"]
[Date "2020.11.03"]
[Round "4"]
[White "JoliyRoger"]
[Black "DraG0s3L"]
[Result "0-1"]
[WhiteElo "2376"]
[BlackElo "2591"]
[TimeControl "180+1"]
[EndTime "10:43:15 PST"]
[Termination "DraG0s3L won on time"]

1. Nf3 {[%clk 0:02:51.5]} 1... Nf6 {[%clk 0:02:57.2]} 2. c4 {[%clk 0:02:44.2]}
2... c5 {[%clk 0:02:54.9]} 3. Nc3 {[%clk 0:02:44.5]} 3... Nc6 {[%clk 0:02:53.8]}
4. e3 {[%clk 0:02:45.2]} 4... g6 {[%clk 0:02:51.8]} 5. Be2 {[%clk 0:02:44.9]}
5... Bg7 {[%clk 0:02:51.8]} 6. O-O {[%clk 0:02:45.5]} 6... O-O {[%clk
0:02:51.4]} 7. a3 {[%clk 0:02:46.1]} 7... d5 {[%clk 0:02:49.4]} 8. cxd5 {[%clk
0:02:46.6]} 8... Nxd5 {[%clk 0:02:50.3]} 9. Ne4 {[%clk 0:02:47]} 9... b6 {[%clk
0:02:49.3]} 10. d3 {[%clk 0:02:47.6]} 10... Bb7 {[%clk 0:02:49.3]} 11. Qc2
{[%clk 0:02:48]} 11... h6 {[%clk 0:02:47.3]} 12. Re1 {[%clk 0:02:48.4]} 12...
Kh7 {[%clk 0:02:45.5]} 13. Rb1 {[%clk 0:02:47.9]} 13... Rc8 {[%clk 0:02:44.6]}
14. Bf1 {[%clk 0:02:47.4]} 14... Qd7 {[%clk 0:02:41.8]} 15. h3 {[%clk
0:02:46.2]} 15... e5 {[%clk 0:02:36.7]} 16. b3 {[%clk 0:02:45.5]} 16... f5
{[%clk 0:02:36.3]} 17. Ng3 {[%clk 0:02:45.6]} 17... f4 {[%clk 0:02:32.9]} 18.
Ne4 {[%clk 0:02:45.3]} 18... fxe3 {[%clk 0:02:31.3]} 19. fxe3 {[%clk 0:02:45.2]}
19... Nce7 {[%clk 0:02:28.8]} 20. Bb2 {[%clk 0:02:42.1]} 20... Nf5 {[%clk
0:02:28.5]} 21. Qf2 {[%clk 0:02:36.6]} 21... Qe7 {[%clk 0:02:23.3]} 22. Ba1
{[%clk 0:02:35.1]} 22... Rcd8 {[%clk 0:02:19.2]} 23. Rbc1 {[%clk 0:02:22.2]}
23... Nf6 {[%clk 0:02:18]} 24. Nxf6+ {[%clk 0:01:48.9]} 24... Bxf6 {[%clk
0:02:18.9]} 25. b4 {[%clk 0:01:09.8]} 25... Nh4 {[%clk 0:02:15.6]} 26. bxc5
{[%clk 0:00:58.3]} 26... Nxf3+ {[%clk 0:02:14.5]} 27. gxf3 {[%clk 0:00:58]}
27... Bh4 {[%clk 0:02:13.4]} 28. Qb2 {[%clk 0:00:19.4]} 28... Qg5+ {[%clk
0:01:46.2]} 29. Qg2 {[%clk 0:00:18.8]} 29... Bxe1 {[%clk 0:01:42.2]} 30. Qxg5
{[%clk 0:00:12.4]} 30... hxg5 {[%clk 0:01:43.1]} 31. Rxe1 {[%clk 0:00:12.4]}
31... bxc5 {[%clk 0:01:42.1]} 32. Bxe5 {[%clk 0:00:06]} 32... Bxf3 {[%clk
0:01:35.9]} 33. Rc1 {[%clk 0:00:06.2]} 33... Rc8 {[%clk 0:01:34.2]} 34. Bd6
{[%clk 0:00:01.9]} 34... Rfd8 {[%clk 0:01:27]} 35. Bxc5 {[%clk 0:00:02.5]} 35...
Rd5 {[%clk 0:01:23.6]} 36. d4 {[%clk 0:00:03.4]} 36... Be4 {[%clk 0:01:22.7]}
37. Bc4 {[%clk 0:00:03.8]} 37... Rf5 {[%clk 0:01:22.1]} 38. Be2 {[%clk
0:00:04.4]} 38... Rb8 {[%clk 0:01:18.8]} 39. Bg4 {[%clk 0:00:04.9]} 39... Rf7
{[%clk 0:01:16.9]} 40. Rf1 {[%clk 0:00:05.5]} 40... Rxf1+ {[%clk 0:01:15.6]} 41.
Kxf1 {[%clk 0:00:06.1]} 41... a6 {[%clk 0:01:14.3]} 42. Be6 {[%clk 0:00:06.3]}
42... Rb2 {[%clk 0:01:12.9]} 43. d5 {[%clk 0:00:06.2]} 43... Rc2 {[%clk
0:01:09.6]} 44. Bb4 {[%clk 0:00:05.8]} 44... Bf5 {[%clk 0:01:02]} 45. Bxf5
{[%clk 0:00:05.7]} 45... gxf5 {[%clk 0:01:02.9]} 46. Ke1 {[%clk 0:00:04.7]}
46... Kg6 {[%clk 0:01:02]} 47. d6 {[%clk 0:00:05.3]} 47... Rc8 {[%clk
0:00:51.8]} 48. Kf1 {[%clk 0:00:05.1]} 48... Kf7 {[%clk 0:00:50.8]} 49. Kf2
{[%clk 0:00:05.7]} 49... Ke6 {[%clk 0:00:51.1]} 50. Kf3 {[%clk 0:00:06.4]} 50...
Rh8 {[%clk 0:00:51]} 51. Kg3 {[%clk 0:00:07]} 51... Rh4 {[%clk 0:00:51]} 52. Kg2
{[%clk 0:00:06.9]} 52... Rh8 {[%clk 0:00:45.3]} 53. Kg3 {[%clk 0:00:07.1]} 53...
Ra8 {[%clk 0:00:45.8]} 54. Bc5 {[%clk 0:00:06.4]} 54... a5 {[%clk 0:00:44.6]}
55. h4 {[%clk 0:00:05.2]} 55... gxh4+ {[%clk 0:00:40.9]} 56. Kxh4 {[%clk
0:00:05.3]} 56... Rc8 {[%clk 0:00:40.2]} 57. Bb6 {[%clk 0:00:05.9]} 57... Kxd6
{[%clk 0:00:31.1]} 58. Bxa5 {[%clk 0:00:06.5]} 58... Rg8 {[%clk 0:00:30.9]} 59.
Kh3 {[%clk 0:00:06.1]} 59... Ke5 {[%clk 0:00:31.2]} 60. Bb6 {[%clk 0:00:06.3]}
60... Ke4 {[%clk 0:00:31.4]} 61. Bd4 {[%clk 0:00:07]} 61... Ra8 {[%clk
0:00:30.4]} 62. Bc5 {[%clk 0:00:06.7]} 62... Ra5 {[%clk 0:00:30]} 63. Bb4 {[%clk
0:00:06.8]} 63... Ra4 {[%clk 0:00:28.6]} 64. Bc5 {[%clk 0:00:05.7]} 64... Ra5
{[%clk 0:00:28.3]} 65. Bb4 {[%clk 0:00:06]} 65... Rb5 {[%clk 0:00:28.8]} 66. Kg3
{[%clk 0:00:05.4]} 66... Kxe3 {[%clk 0:00:28.6]} 67. Kg2 {[%clk 0:00:05.9]}
67... f4 {[%clk 0:00:28.1]} 68. Be1 {[%clk 0:00:06.8]} 68... Ke2 {[%clk
0:00:27.4]} 69. Bf2 {[%clk 0:00:06.5]} 69... f3+ {[%clk 0:00:27.7]} 70. Kg3
{[%clk 0:00:07.2]} 70... Ra5 {[%clk 0:00:26.8]} 71. Bd4 {[%clk 0:00:06.4]} 71...
Rxa3 {[%clk 0:00:26.5]} 72. Be5 {[%clk 0:00:07.3]} 72... Ra4 {[%clk 0:00:26.7]}
0-1

[Event "*** Titled Tuesday Blitz"]
[Site "Chess.com"]
[Date "2020.11.03"]
[Round "4"]
[White "Gerodot71"]
[Black "vovachesss"]
[Result "1-0"]
[WhiteElo "2501"]
[BlackElo "2683"]
[TimeControl "180+1"]
[EndTime "10:43:18 PST"]
[Termination "Gerodot71 won on time"]

1. d4 {[%clk 0:03:00.9]} 1... Nf6 {[%clk 0:02:59.9]} 2. c4 {[%clk 0:03:01.3]}
2... c6 {[%clk 0:03:00]} 3. Nf3 {[%clk 0:03:01.1]} 3... d5 {[%clk 0:03:00.6]} 4.
Nc3 {[%clk 0:02:58.1]} 4... dxc4 {[%clk 0:03:00.7]} 5. a4 {[%clk 0:02:57.6]}
5... Bg4 {[%clk 0:02:59.3]} 6. Ne5 {[%clk 0:02:55.3]} 6... Nbd7 {[%clk
0:02:59.8]} 7. Nxc4 {[%clk 0:02:52.8]} 7... e6 {[%clk 0:02:51.4]} 8. f3 {[%clk
0:02:51]} 8... Bh5 {[%clk 0:02:51.3]} 9. e4 {[%clk 0:02:45.2]} 9... Be7 {[%clk
0:02:49.6]} 10. Be2 {[%clk 0:02:43.1]} 10... O-O {[%clk 0:02:49.6]} 11. O-O
{[%clk 0:02:40.4]} 11... Nb6 {[%clk 0:02:48]} 12. Be3 {[%clk 0:02:38]} 12...
Nxc4 {[%clk 0:02:46.7]} 13. Bxc4 {[%clk 0:02:38.9]} 13... a5 {[%clk 0:02:44]}
14. Qc2 {[%clk 0:02:35.4]} 14... Qc7 {[%clk 0:02:39.4]} 15. Rad1 {[%clk
0:02:31.3]} 15... Rfd8 {[%clk 0:02:39]} 16. Kh1 {[%clk 0:02:23.8]} 16... Bb4
{[%clk 0:02:33.8]} 17. Bg1 {[%clk 0:02:20.5]} 17... Bg6 {[%clk 0:02:29.1]} 18.
Qb3 {[%clk 0:02:16.7]} 18... Rd7 {[%clk 0:02:15.3]} 19. Ne2 {[%clk 0:02:04.8]}
19... Rad8 {[%clk 0:02:14]} 20. Bf2 {[%clk 0:01:54.8]} 20... Nh5 {[%clk
0:02:05.8]} 21. Qa2 {[%clk 0:01:31.9]} 21... Nf4 {[%clk 0:01:56.8]} 22. Bg3
{[%clk 0:01:26.2]} 22... Bd6 {[%clk 0:01:56.7]} 23. e5 {[%clk 0:01:25.3]} 23...
Nxe2 {[%clk 0:01:56.9]} 24. Bxe2 {[%clk 0:01:21]} 24... Bb4 {[%clk 0:01:46.1]}
25. Qc4 {[%clk 0:01:19.6]} 25... Be7 {[%clk 0:01:38.4]} 26. Bf2 {[%clk
0:01:14.5]} 26... Rd5 {[%clk 0:01:34.8]} 27. Bd3 {[%clk 0:01:07.8]} 27... Qb6
{[%clk 0:01:12.1]} 28. Be4 {[%clk 0:00:53]} 28... R5d7 {[%clk 0:00:50]} 29. Rd2
{[%clk 0:00:50.3]} 29... Qb4 {[%clk 0:00:44.8]} 30. Qxb4 {[%clk 0:00:38.3]}
30... Bxb4 {[%clk 0:00:43.3]} 31. Rd3 {[%clk 0:00:38.6]} 31... c5 {[%clk
0:00:33.5]} 32. Bxg6 {[%clk 0:00:35.8]} 32... hxg6 {[%clk 0:00:32.9]} 33. Rfd1
{[%clk 0:00:36.4]} 33... c4 {[%clk 0:00:19.8]} 34. Rc3 {[%clk 0:00:36.4]} 34...
Bxc3 {[%clk 0:00:19.3]} 35. bxc3 {[%clk 0:00:37.3]} 35... b5 {[%clk 0:00:19.4]}
36. axb5 {[%clk 0:00:35.7]} 36... Rb8 {[%clk 0:00:20.1]} 37. Rb1 {[%clk
0:00:32.4]} 37... Rdb7 {[%clk 0:00:20.1]} 38. h4 {[%clk 0:00:30.2]} 38... Rxb5
{[%clk 0:00:20.4]} 39. Ra1 {[%clk 0:00:30.6]} 39... Ra8 {[%clk 0:00:20.7]} 40.
Ra4 {[%clk 0:00:29.5]} 40... Rb3 {[%clk 0:00:21.1]} 41. d5 {[%clk 0:00:27.9]}
41... exd5 {[%clk 0:00:19.9]} 42. Bd4 {[%clk 0:00:28.4]} 42... Kf8 {[%clk
0:00:16.7]} 43. Kh2 {[%clk 0:00:28.7]} 43... Ke8 {[%clk 0:00:17.2]} 44. g4
{[%clk 0:00:28.9]} 44... Kd7 {[%clk 0:00:17.7]} 45. e6+ {[%clk 0:00:27]} 45...
fxe6 {[%clk 0:00:13.9]} 46. Bxg7 {[%clk 0:00:26.8]} 46... Kc6 {[%clk 0:00:14.8]}
47. h5 {[%clk 0:00:26.5]} 47... gxh5 {[%clk 0:00:15.2]} 48. gxh5 {[%clk
0:00:27.4]} 48... Kb5 {[%clk 0:00:15.9]} 49. Ra2 {[%clk 0:00:25.8]} 49... a4
{[%clk 0:00:15.7]} 50. h6 {[%clk 0:00:26.3]} 50... a3 {[%clk 0:00:16.1]} 51. Kg3
{[%clk 0:00:26.2]} 51... Rb2 {[%clk 0:00:15.1]} 52. Ra1 {[%clk 0:00:25.8]} 52...
Ra7 {[%clk 0:00:11.1]} 53. Kf4 {[%clk 0:00:23.3]} 53... Rh2 {[%clk 0:00:09.2]}
54. Ke5 {[%clk 0:00:19.6]} 54... a2 {[%clk 0:00:09]} 55. Kxe6 {[%clk 0:00:18]}
55... Ka4 {[%clk 0:00:09.1]} 56. h7 {[%clk 0:00:16.1]} 56... Kb3 {[%clk
0:00:07.9]} 57. h8=Q {[%clk 0:00:14.7]} 57... Rxh8 {[%clk 0:00:08.8]} 58. Bxh8
{[%clk 0:00:15.5]} 58... Ra5 {[%clk 0:00:08.4]} 59. Bd4 {[%clk 0:00:13.8]} 59...
Kb2 {[%clk 0:00:08.5]} 60. Rxa2+ {[%clk 0:00:14.2]} 60... Kxa2 {[%clk
0:00:08.7]} 61. f4 {[%clk 0:00:15.1]} 61... Kb2 {[%clk 0:00:04]} 62. f5 {[%clk
0:00:15.3]} 62... Ra6+ {[%clk 0:00:01.5]} 63. Ke7 {[%clk 0:00:15.6]} 63... Kb3
{[%clk 0:00:02]} 64. f6 {[%clk 0:00:15.9]} 64... Ra8 {[%clk 0:00:02.1]} 65. f7
{[%clk 0:00:16.2]} 65... Kc2 {[%clk 0:00:01.4]} 66. f8=Q {[%clk 0:00:16.6]}
66... Rxf8 {[%clk 0:00:01.3]} 67. Kxf8 {[%clk 0:00:17.5]} 67... Kd3 {[%clk
0:00:01.7]} 68. Ke7 {[%clk 0:00:18]} 68... Ke4 {[%clk 0:00:01.9]} 69. Ke6 {[%clk
0:00:18.5]} 1-0

[Event "*** Titled Tuesday Blitz"]
[Site "Chess.com"]
[Date "2020.11.03"]
[Round "4"]
[White "BogdanDeac"]
[Black "alexrustemov"]
[Result "1/2-1/2"]
[WhiteElo "2873"]
[BlackElo "2678"]
[TimeControl "180+1"]
[EndTime "10:43:20 PST"]
[Termination "Game drawn by repetition"]

1. d4 {[%clk 0:03:00.9]} 1... d5 {[%clk 0:02:59.6]} 2. c4 {[%clk 0:03:00.8]}
2... e6 {[%clk 0:02:59.6]} 3. Nf3 {[%clk 0:03:01.1]} 3... Nf6 {[%clk 0:02:59.4]}
4. Nc3 {[%clk 0:03:01.6]} 4... Be7 {[%clk 0:02:58.9]} 5. g3 {[%clk 0:03:00.3]}
5... O-O {[%clk 0:02:57.5]} 6. Bg2 {[%clk 0:03:00.2]} 6... c6 {[%clk 0:02:55.6]}
7. O-O {[%clk 0:02:59.8]} 7... Nbd7 {[%clk 0:02:55.1]} 8. b3 {[%clk 0:02:54]}
8... b6 {[%clk 0:02:55.1]} 9. Qc2 {[%clk 0:02:54.2]} 9... Ba6 {[%clk 0:02:53.2]}
10. Rd1 {[%clk 0:02:50.5]} 10... Rc8 {[%clk 0:02:52.1]} 11. Bg5 {[%clk
0:02:34.5]} 11... h6 {[%clk 0:02:49.6]} 12. Bxf6 {[%clk 0:02:30.5]} 12... Nxf6
{[%clk 0:02:44.6]} 13. Qb2 {[%clk 0:01:34.7]} 13... Qd6 {[%clk 0:02:38.4]} 14.
Ne5 {[%clk 0:00:39.7]} 14... Qa3 {[%clk 0:02:32.4]} 15. Qd2 {[%clk 0:00:27.7]}
15... Rfd8 {[%clk 0:02:29.4]} 16. Rac1 {[%clk 0:00:23.9]} 16... Bb4 {[%clk
0:02:19.7]} 17. Qd3 {[%clk 0:00:16.1]} 17... c5 {[%clk 0:02:05.2]} 18. Nb5
{[%clk 0:00:15]} 18... Bxb5 {[%clk 0:02:03.8]} 19. cxb5 {[%clk 0:00:15]} 19...
cxd4 {[%clk 0:01:54.1]} 20. Nc6 {[%clk 0:00:14.5]} 20... Re8 {[%clk 0:01:36.4]}
21. Qxd4 {[%clk 0:00:08.3]} 21... Bc5 {[%clk 0:01:33.9]} 22. Qd3 {[%clk
0:00:08.6]} 22... a5 {[%clk 0:01:26.8]} 23. e3 {[%clk 0:00:05.6]} 23... Rc7
{[%clk 0:01:02.3]} 24. Rc2 {[%clk 0:00:05.4]} 24... Rec8 {[%clk 0:01:01.6]} 25.
e4 {[%clk 0:00:05.6]} 25... dxe4 {[%clk 0:00:55.9]} 26. Bxe4 {[%clk 0:00:05.8]}
26... Rd7 {[%clk 0:00:56.6]} 27. Qxd7 {[%clk 0:00:04.8]} 27... Nxd7 {[%clk
0:00:55.7]} 28. Rxd7 {[%clk 0:00:05.7]} 28... Kf8 {[%clk 0:00:48.2]} 29. Rd3
{[%clk 0:00:05.3]} 29... Bb4 {[%clk 0:00:45.4]} 30. Kg2 {[%clk 0:00:04.4]} 30...
g6 {[%clk 0:00:45.6]} 31. Bf3 {[%clk 0:00:03.3]} 31... Kg7 {[%clk 0:00:43.3]}
32. Rd7 {[%clk 0:00:03.4]} 32... Rf8 {[%clk 0:00:33.6]} 33. Nd8 {[%clk
0:00:03.2]} 33... Be7 {[%clk 0:00:32]} 34. Nc6 {[%clk 0:00:03.3]} 34... Bf6
{[%clk 0:00:31.7]} 35. Na7 {[%clk 0:00:03.4]} 35... a4 {[%clk 0:00:30.2]} 36.
Rb7 {[%clk 0:00:03]} 36... axb3 {[%clk 0:00:30.1]} 37. axb3 {[%clk 0:00:03.9]}
37... Qxb3 {[%clk 0:00:30.8]} 38. Rcc7 {[%clk 0:00:04.5]} 38... Bd4 {[%clk
0:00:27.2]} 39. Nc6 {[%clk 0:00:04.5]} 39... Qb2 {[%clk 0:00:27]} 40. Nxd4
{[%clk 0:00:04.5]} 40... Qxd4 {[%clk 0:00:27.7]} 41. Rc6 {[%clk 0:00:05]} 41...
Ra8 {[%clk 0:00:25.8]} 42. Rcc7 {[%clk 0:00:04.9]} 42... Rf8 {[%clk 0:00:24.4]}
43. Rc6 {[%clk 0:00:05.3]} 43... h5 {[%clk 0:00:23.1]} 44. Rcxb6 {[%clk
0:00:04.8]} 44... h4 {[%clk 0:00:23]} 45. gxh4 {[%clk 0:00:03.8]} 45... Qxh4
{[%clk 0:00:21.3]} 46. Rxe6 {[%clk 0:00:04.1]} 46... Qg5+ {[%clk 0:00:20.6]} 47.
Kf1 {[%clk 0:00:04.1]} 47... Rd8 {[%clk 0:00:20.7]} 48. Re3 {[%clk 0:00:03.9]}
48... Rd2 {[%clk 0:00:17]} 49. Be2 {[%clk 0:00:04.2]} 49... Qd5 {[%clk
0:00:16.2]} 50. Bf3 {[%clk 0:00:01.6]} 50... Qc4+ {[%clk 0:00:14.2]} 51. Kg2
{[%clk 0:00:02]} 51... Qc2 {[%clk 0:00:14]} 52. Ree7 {[%clk 0:00:02.3]} 52...
Rxf2+ {[%clk 0:00:13.9]} 53. Kg3 {[%clk 0:00:03.2]} 53... Rxf3+ {[%clk
0:00:12.9]} 54. Kxf3 {[%clk 0:00:03.5]} 54... Qf5+ {[%clk 0:00:13.5]} 55. Ke2
{[%clk 0:00:03.7]} 55... Qg4+ {[%clk 0:00:13.4]} 56. Kd2 {[%clk 0:00:04]} 56...
Qd4+ {[%clk 0:00:12.7]} 57. Kc2 {[%clk 0:00:04.4]} 57... Qc4+ {[%clk 0:00:12.9]}
58. Kd2 {[%clk 0:00:04.8]} 58... Qd4+ {[%clk 0:00:13]} 59. Ke2 {[%clk
0:00:05.3]} 59... Qc4+ {[%clk 0:00:12.9]} 60. Ke3 {[%clk 0:00:05.7]} 60... Qc3+
{[%clk 0:00:13]} 61. Ke4 {[%clk 0:00:06]} 61... Qc4+ {[%clk 0:00:13.3]} 62. Ke5
{[%clk 0:00:06.4]} 62... Qc5+ {[%clk 0:00:13.7]} 63. Kf4 {[%clk 0:00:06.8]}
63... Qd4+ {[%clk 0:00:13.8]} 64. Kf3 {[%clk 0:00:07.3]} 64... Qd3+ {[%clk
0:00:14]} 65. Kf2 {[%clk 0:00:07.7]} 65... Qd2+ {[%clk 0:00:14.3]} 66. Kg3
{[%clk 0:00:07.8]} 66... Qd3+ {[%clk 0:00:14.4]} 67. Kf4 {[%clk 0:00:08]} 67...
Qd4+ {[%clk 0:00:14.6]} 68. Kf3 {[%clk 0:00:08.3]} 68... Qd3+ {[%clk 0:00:15]}
69. Kf2 {[%clk 0:00:08]} 69... Qd2+ {[%clk 0:00:14.9]} 70. Kg1 {[%clk 0:00:08]}
70... Qd1+ {[%clk 0:00:14.9]} 71. Kg2 {[%clk 0:00:08.4]} 71... Qd2+ {[%clk
0:00:15.3]} 72. Kg1 {[%clk 0:00:08.8]} 72... Qd1+ {[%clk 0:00:15.5]} 73. Kf2
{[%clk 0:00:09.1]} 73... Qd2+ {[%clk 0:00:16]} 1/2-1/2